bitfinex/quotes_SOLUSD_20260223
["timestamp","ask_amount","ask_price","bid_price","bid_amount"]
[1771876092754,2.03908098,78.275,78.242,2.06218031]
[1771876094250,2.03908098,78.273,78.244,2.06218031]
[1771876094550,2.03908098,78.281,78.244,2.06218031]
[1771876095160,2.03908098,78.279,78.244,2.06218031]
[1771876096438,2.03908098,78.279,78.246,2.06218031]
[1771876096644,2.03908098,78.277,78.246,2.06218031]
[1771876096955,2.03908098,78.285,78.246,2.06218031]
[1771876097959,2.03908098,78.285,78.248,2.18969022]
[1771876098157,2.15075898,78.298,78.249,2.18969022]
[1771876098355,12.77188142,78.297,78.25,44.72843449]
[1771876098658,2.15075898,78.296,78.251,2.18969022]
[1771876098966,2.15075898,78.279,78.25,12.77955271]
[1771876099148,2.15075898,78.279,78.254,0.2]
[1771876099537,2.15075898,78.269,78.254,0.2]
[1771876100033,2.15075898,78.269,78.245,12.78026534]
[1771876100234,2.15075898,78.269,78.244,0.2]
[1771876100451,2.16893658,78.267,78.244,0.2]
[1771876101052,2.16893658,78.259,78.244,0.2]
[1771876101764,0.28432314,78.289,78.244,0.2]
[1771876101765,0.28432314,78.296,78.245,12.78036935]
[1771876101953,2.16893658,78.277,78.245,12.78036935]
[1771876102449,2.16893658,78.269,78.245,12.78036935]
[1771876102861,2.16893658,78.278,78.246,2.29451395]
[1771876104659,2.16893658,78.278,78.248,2.29451395]
[1771876105651,2.16893658,78.269,78.247,12.78004268]
[1771876106458,2.16893658,78.269,78.256,0.2]
[1771876107470,2.16893658,78.269,78.266,0.2]
[1771876107766,2.16893658,78.269,78.256,0.2]
[1771876107969,142.11765293,78.519,78.246,0.2]
[1771876107970,2.16893658,78.267,78.246,0.2]
[1771876108173,12.77661368,78.268,78.226,12.78342321]
[1771876108174,2.16893658,78.259,78.226,12.78342321]
[1771876108350,2.16893658,78.259,78.225,12.78363694]
[1771876108550,2.16893658,78.259,78.225,15.07815089]
[1771876108870,2.16893658,78.257,78.225,15.07815089]
[1771876109263,2.16893658,78.264,78.226,2.29451395]
[1771876111452,2.16893658,78.263,78.228,2.29451395]
[1771876113572,2.16893658,78.263,78.23,2.29451395]
[1771876113959,2.16893658,78.261,78.23,2.29451395]
[1771876114565,2.16893658,78.261,78.237,2.29451395]
[1771876115168,2.16893658,78.261,78.226,0.2]
[1771876115169,2.16893658,78.249,78.226,0.2]
[1771876115371,12.33158209,78.25,78.174,57.56]
[1771876115372,2.16893658,78.247,78.174,57.56]
[1771876115557,2.16893658,78.247,78.159,51.17727307]
[1771876115558,2.16893658,78.219,78.183,2.29451395]
[1771876116657,2.16893658,78.239,78.191,2.29451395]
[1771876117272,2.16893658,78.237,78.193,2.29451395]
[1771876119368,0.28432314,78.254,78.194,12.78870501]
[1771876119369,2.16893658,78.219,78.194,12.78870501]
[1771876120267,2.16893658,78.239,78.197,2.29451395]
[1771876120465,2.16893658,78.246,78.201,2.29451395]
[1771876121371,2.16893658,78.246,78.202,44.75588859]
[1771876121573,31.94520757,78.259,78.203,2.57883709]
[1771876121574,14.94701961,78.259,78.203,2.57883709]
[1771876121772,2.16893658,78.258,78.203,2.57883709]
[1771876123686,2.16893658,78.256,78.21,2.29451395]
[1771876124068,2.16893658,78.256,78.21,1.67547021]
[1771876125561,2.16893658,78.254,78.211,44.75073838]
[1771876126080,2.16893658,78.254,78.212,2.29451395]
[1771876126280,2.16893658,78.249,78.212,2.29451395]
[1771876129093,2.16893658,78.249,78.205,63.93409974]
[1771876129094,2.33332692,78.256,78.214,2.2447703]
[1771876129288,2.33332692,78.256,78.22,2.2447703]
[1771876129888,2.33332692,78.27,78.224,2.2447703]
[1771876130191,2.33332692,78.27,78.23,2.2447703]
[1771876130690,2.33332692,78.269,78.217,2.52909344]
[1771876131395,2.33332692,78.269,78.225,0.28432314]
[1771876131583,2.33332692,78.269,78.23,2.2447703]
[1771876132076,2.33332692,78.268,78.222,2.2447703]
[1771876133589,2.33332692,78.266,78.224,2.2447703]
[1771876135290,12.77677693,78.267,78.224,2.2447703]
[1771876135291,2.33332692,78.259,78.224,2.2447703]
[1771876135678,2.33332692,78.259,78.226,2.2447703]
[1771876138108,2.33332692,78.267,78.23,2.2447703]
[1771876140103,2.33332692,78.267,78.232,2.2447703]
[1771876140305,2.33332692,78.278,78.232,2.2447703]
[1771876141096,2.33332692,78.259,78.231,12.78265649]
[1771876141295,2.33332692,78.259,78.226,12.78333645]
[1771876142604,12.33158209,78.26,78.222,31.95997]
[1771876142605,2.33332692,78.257,78.223,2.2447703]
[1771876142992,2.33332692,78.257,78.221,12.78429066]
[1771876143599,2.33332692,78.249,78.221,12.78429066]
[1771876143994,2.33332692,78.249,78.222,2.2447703]
[1771876144510,2.33332692,78.257,78.224,2.2447703]
[1771876145599,2.33332692,78.266,78.224,2.2447703]
[1771876145792,0.28432314,78.279,78.223,44.74387327]
[1771876145793,2.33332692,78.273,78.23,2.2447703]
[1771876146795,2.33332692,78.273,78.232,2.2447703]
[1771876147001,2.33332692,78.273,78.24,2.2447703]
[1771876147197,2.33332692,78.28,78.24,2.2447703]
[1771876148088,2.33332692,78.279,78.24,2.2447703]
[1771876148294,2.33332692,78.269,78.232,2.2447703]
[1771876148499,2.33332692,78.269,78.201,5.36086188]
[1771876148500,0.14216157,78.268,78.214,2.2447703]
[1771876148702,0.14216157,78.268,78.137,102.0]
[1771876148703,2.33332692,78.239,78.207,12.786484]
[1771876148906,2.33332692,78.239,78.208,2.2447703]
[1771876149313,2.33332692,78.259,78.208,2.2447703]
[1771876149920,2.33332692,78.249,78.208,2.2447703]
[1771876150091,2.33332692,78.239,78.208,2.2447703]
[1771876150714,95.82582697,78.267,78.209,12.78625222]
[1771876150715,2.33332692,78.237,78.209,12.78625222]
[1771876150921,2.33332692,78.237,78.21,2.2447703]
[1771876152233,2.33332692,78.237,78.231,0.2]
[1771876153119,2.33332692,78.235,78.21,2.2447703]
[1771876153294,2.13332692,78.235,78.212,2.2447703]
[1771876153617,2.13332692,78.235,78.206,12.7867323]
[1771876153811,12.78183956,78.236,78.206,12.7867323]
[1771876154513,12.58183956,78.236,78.206,12.7867323]
[1771876154716,12.32683581,78.22,78.189,12.78952282]
[1771876155220,12.32683581,78.22,78.188,31.9742031]
[1771876155221,2.33332692,78.218,78.188,31.9742031]
[1771876156207,2.33332692,78.229,78.189,2.2447703]
[1771876156408,2.33332692,78.228,78.189,2.2447703]
[1771876156832,2.33332692,78.228,78.171,51.16930811]
[1771876156833,0.48328205,78.198,78.155,2.28774358]
[1771876157115,12.32683581,78.2,78.134,2.33774358]
[1771876157116,12.32683581,78.17,78.134,2.33774358]
[1771876157308,12.32683581,78.17,78.12,0.1]
[1771876157309,12.32683581,78.17,78.136,2.33774358]
[1771876157899,0.39634961,78.169,78.136,2.33774358]
[1771876158310,12.32683581,78.17,78.136,2.33774358]
[1771876158518,0.40275908,78.149,78.121,12.80058376]
[1771876158818,12.32683581,78.15,78.122,2.48449117]
[1771876159203,12.32683581,78.16,78.122,2.48449117]
[1771876159406,12.79443186,78.159,78.123,12.80032768]
[1771876159709,12.79443186,78.159,78.124,2.48449117]
[1771876161002,12.32683581,78.17,78.124,2.48449117]
[1771876161420,0.32177114,78.176,78.127,0.28432314]
[1771876161612,12.32683581,78.18,78.131,2.39046523]
[1771876161808,12.79001355,78.186,78.131,2.39046523]
[1771876161809,12.32683581,78.17,78.131,2.39046523]
[1771876162197,0.32798299,78.179,78.131,2.39046523]
[1771876162921,12.32683581,78.16,78.131,2.39046523]
[1771876163128,12.32683581,78.16,78.12,0.1]
[1771876163129,0.33410444,78.159,78.125,2.39046523]
[1771876163332,12.32683581,78.17,78.125,2.39046523]
[1771876163631,12.79279509,78.169,78.129,2.39046523]
[1771876163922,12.32683581,78.16,78.129,2.39046523]
[1771876164112,12.66697122,78.16,78.129,2.39046523]
[1771876165046,0.3461158,78.139,78.105,2.39046523]
[1771876165323,12.32683581,78.15,78.105,2.39046523]
[1771876165324,0.25213076,78.149,78.105,2.39046523]
[1771876165524,12.79770665,78.139,78.106,12.80311371]
[1771876165699,12.79770665,78.139,78.107,2.43774358]
[1771876166119,0.25213076,78.147,78.107,2.43774358]
[1771876166419,0.25803768,78.153,78.107,2.43774358]
[1771876166622,0.25803768,78.153,78.109,2.43774358]
[1771876167322,0.25803768,78.153,78.109,1.5470429]
[1771876167717,12.32683581,78.15,78.11,44.80860324]
[1771876168101,1.15455893,78.149,78.11,12.80245807]
[1771876168303,12.32683581,78.14,78.11,12.80245807]
[1771876168506,1.16101656,78.139,78.11,12.80245807]
[1771876169214,1.16101656,78.139,78.089,32.01450989]
[1771876169414,1.16101656,78.139,78.09,2.39046523]
[1771876169618,1.16101656,78.139,78.1,2.39046523]
[1771876170927,1.17370219,78.137,78.101,15.19439859]
[1771876171132,12.79787043,78.138,78.102,2.39046523]
[1771876171311,12.79787043,78.138,78.111,2.39046523]
[1771876172023,12.79724811,78.142,78.111,2.39046523]
[1771876172239,1.18606214,78.149,78.121,2.39046523]
[1771876172728,1.18606214,78.148,78.121,2.39046523]
[1771876173417,2.52811414,78.146,78.11,12.37480905]
[1771876174027,2.52811414,78.146,78.12,12.37480905]
[1771876174809,2.52811414,78.155,78.12,12.37480905]
[1771876175016,2.52811414,78.159,78.13,12.37480905]
[1771876175319,2.52811414,78.159,78.1,12.37480905]
[1771876175320,12.79508668,78.155,78.122,12.80049153]
[1771876175526,2.52811414,78.154,78.123,2.39046523]
[1771876176410,2.52811414,78.139,78.113,2.39046523]
[1771876176608,2.52811414,78.129,78.095,15.19538231]
[1771876176926,2.52811414,78.129,78.101,2.39046523]
[1771876177506,2.52811414,78.127,78.101,2.39046523]
[1771876178435,2.52811414,78.127,78.101,15.19436115]
[1771876178642,2.52811414,78.127,78.101,2.39046523]
[1771876179744,12.79983616,78.126,78.102,15.19423465]
[1771876179933,2.52811414,78.127,78.103,2.39046523]
[1771876180237,2.52811414,78.127,78.102,12.80376942]
[1771876180238,12.79983616,78.126,78.102,12.80376942]
[1771876180437,2.52811414,78.125,78.097,12.80456112]
[1771876180639,2.52811414,78.125,78.101,2.39046523]
[1771876181736,2.52811414,78.138,78.11,12.37480905]
[1771876181937,2.52811414,78.138,78.111,2.39046523]
[1771876182930,2.52811414,78.129,78.102,12.80376942]
[1771876184326,2.52811414,78.129,78.1,12.37480905]
[1771876184526,2.52811414,78.129,78.095,32.01229272]
[1771876184527,12.7981731,78.137,78.111,2.39046523]
[1771876184824,2.52811414,78.142,78.111,2.39046523]
[1771876185041,2.52811414,78.139,78.11,12.37480905]
[1771876185236,2.52811414,78.139,78.104,2.39046523]
[1771876185431,2.52811414,78.139,78.069,102.47315487]
[1771876185432,2.52811414,78.129,78.09,12.37480905]
[1771876185636,44.79082683,78.141,78.08,2.63503313]
[1771876185637,2.52811414,78.109,78.08,2.63503313]
[1771876185837,2.52811414,78.109,78.081,2.39046523]
[1771876186436,12.80278588,78.108,78.081,15.19767825]
[1771876186734,15.33090002,78.108,78.081,2.39046523]
[1771876187553,2.52811414,78.107,78.081,2.39046523]
[1771876188139,2.52811414,78.107,78.081,15.19766355]
[1771876188443,12.80311371,78.106,78.081,2.39046523]
[1771876188950,12.80311371,78.106,78.051,2.51093408]
[1771876188951,2.47769785,78.089,78.051,2.51093408]
[1771876190252,2.47769785,78.099,78.071,2.51093408]
[1771876190640,15.28212305,78.098,78.071,2.51093408]
[1771876190831,2.47769785,78.106,78.081,2.51093408]
[1771876191034,2.47769785,78.106,78.072,44.83041294]
[1771876191035,12.80171224,78.115,78.091,2.51093408]
[1771876191850,2.47769785,78.114,78.081,2.51093408]
[1771876192043,2.47769785,78.109,78.081,2.51093408]
[1771876192645,2.47769785,78.109,78.083,2.51093408]
[1771876192845,2.47769785,78.116,78.083,2.51093408]
[1771876194462,2.47769785,78.109,78.083,2.51093408]
[1771876195946,12.80240608,78.111,78.085,2.51093408]
[1771876196144,12.80240608,78.111,78.084,12.80672096]
[1771876196145,2.47769785,78.142,78.101,2.51093408]
[1771876196469,2.47769785,78.142,78.111,2.51093408]
[1771876196670,5.55225338,78.15,78.121,2.51093408]
[1771876196862,2.47769785,78.152,78.121,2.51093408]
[1771876197163,2.47769785,78.149,78.121,2.51093408]
[1771876198144,2.47769785,78.147,78.121,2.51093408]
[1771876198362,2.47769785,78.155,78.123,2.51093408]
[1771876199156,2.47769785,78.153,78.123,2.51093408]
[1771876199369,12.7952504,78.154,78.13,12.37315916]
[1771876199370,2.47769785,78.154,78.13,12.37315916]
[1771876199570,2.47769785,78.181,78.141,2.51093408]
[1771876199745,2.47769785,78.181,78.15,14.88409324]
[1771876200144,12.79099513,78.18,78.151,15.30667565]
[1771876200344,2.47769785,78.18,78.16,12.37315916]
[1771876200545,12.37315916,78.2,78.16,12.37315916]
[1771876200546,2.47769785,78.186,78.16,12.37315916]
[1771876200763,2.47769785,78.198,78.161,2.51093408]
[1771876201459,2.47769785,78.198,78.17,12.37315916]
[1771876201639,12.78788731,78.199,78.171,2.51093408]
[1771876202280,12.78788731,78.199,78.172,2.51093408]
[1771876202457,2.47769785,78.198,78.163,2.51093408]
[1771876202770,2.47769785,78.198,78.164,2.51093408]
[1771876202967,2.47769785,78.198,78.17,12.37315916]
[1771876203146,2.47769785,78.198,78.171,2.51093408]
[1771876203671,2.47769785,78.206,78.171,2.51093408]
[1771876204252,2.47769785,78.198,78.172,12.79230414]
[1771876205051,2.47769785,78.229,78.191,2.51093408]
[1771876205364,2.34962785,78.229,78.191,2.51093408]
[1771876205563,2.34962785,78.229,78.2,12.37315916]
[1771876205745,2.34962785,78.229,78.201,2.51093408]
[1771876205946,12.98284095,78.23,78.201,2.51093408]
[1771876206345,25.35600011,78.23,78.202,2.51093408]
[1771876206560,12.37315916,78.22,78.18,12.37315916]
[1771876206743,12.37315916,78.22,78.181,2.51093408]
[1771876207241,2.47769785,78.219,78.181,2.51093408]
[1771876207442,12.35248259,78.21,78.181,2.51093408]
[1771876207646,14.83018044,78.21,78.181,2.51093408]
[1771876207853,2.47769785,78.21,78.181,2.51093408]
[1771876208246,15.26383128,78.21,78.183,2.51093408]
[1771876208448,15.26383128,78.21,78.146,2.51093408]
[1771876208449,0.74826683,78.189,78.146,2.51093408]
[1771876208664,0.28432314,78.199,78.133,31.99645963]
[1771876208665,12.35248259,78.17,78.148,2.70689388]
[1771876208964,12.35248259,78.18,78.151,2.70689388]
[1771876209553,12.35248259,78.19,78.151,2.70689388]
[1771876209755,0.28432314,78.209,78.14,2.70689388]
[1771876209756,12.35248259,78.17,78.14,2.70689388]
[1771876210971,25.1452634,78.17,78.142,2.70689388]
[1771876212476,12.79194944,78.175,78.142,2.70689388]
[1771876212650,12.35248259,78.17,78.142,2.20689388]
[1771876212973,12.35248259,78.18,78.143,44.78968044]
[1771876213777,12.35248259,78.17,78.135,12.7983618]
[1771876214666,12.35248259,78.19,78.151,2.51093408]
[1771876215169,12.35248259,78.18,78.153,2.51093408]
[1771876215362,45.3032613,78.189,78.153,2.51093408]
[1771876215565,12.35248259,78.17,78.153,2.51093408]
[1771876215871,12.35248259,78.17,78.134,31.9961193]
[1771876215872,12.89241402,78.17,78.141,2.51093408]
[1771876216171,12.35248259,78.17,78.141,2.51093408]
[1771876216371,12.35248259,78.18,78.141,2.51093408]
[1771876216759,12.35248259,78.17,78.141,2.51093408]
[1771876216970,12.35248259,78.16,78.132,2.51093408]
[1771876217364,12.79443186,78.159,78.134,2.51093408]
[1771876218574,12.79443186,78.159,78.116,32.00337516]
[1771876218575,12.35248259,78.15,78.121,2.59477908]
[1771876218757,12.35248259,78.15,78.122,15.39516097]
[1771876219074,12.35248259,78.15,78.122,2.59477908]
[1771876219376,12.35248259,78.15,78.113,12.80194748]
[1771876219377,12.35248259,78.14,78.113,2.59477908]
[1771876219751,12.79678464,78.145,78.113,2.59477908]
[1771876220877,12.795436,78.153,78.121,2.5950085]
[1771876221375,155.1468609,78.207,78.1,12.35248259]
[1771876221376,12.79338057,78.166,78.133,2.5950085]
[1771876221877,12.79338057,78.166,78.14,12.35248259]
[1771876222179,12.79115875,78.179,78.141,2.5950085]
[1771876223577,12.35248259,78.17,78.143,2.5950085]
[1771876226081,12.79183263,78.175,78.145,2.5950085]
[1771876226374,12.79075172,78.182,78.151,2.5950085]
[1771876226579,12.35248259,78.18,78.151,2.5950085]
[1771876227656,12.78984997,78.187,78.153,2.5950085]
[1771876228283,12.35248259,78.18,78.153,2.5950085]
[1771876228574,12.35248259,78.18,78.132,3.69383402]
[1771876228575,12.35248259,78.17,78.145,2.5950085]
[1771876230365,12.79195432,78.175,78.146,12.79656028]
[1771876230562,12.79195432,78.175,78.147,2.5950085]
[1771876230962,12.35248259,78.17,78.147,2.5950085]
[1771876232288,12.35248259,78.2,78.122,3.69383402]
[1771876232289,12.35248259,78.19,78.151,2.5950085]
[1771876232974,12.98970474,78.19,78.151,2.5950085]
[1771876233989,0.64173925,78.189,78.151,2.5950085]
[1771876234996,12.35248259,78.17,78.133,2.5950085]
[1771876235786,12.78968639,78.188,78.151,2.5950085]
[1771876236391,44.76390238,78.188,78.151,2.5950085]
[1771876236568,45.41885536,78.188,78.151,2.5950085]
[1771876237093,45.41885536,78.188,78.15,12.35248259]
[1771876237094,12.35248259,78.18,78.153,2.5950085]
[1771876237599,12.35248259,78.17,78.145,2.5950085]
[1771876239091,31.96563055,78.209,78.151,2.78651563]
[1771876239273,12.35248259,78.19,78.151,2.78651563]
[1771876241895,12.35248259,78.18,78.151,2.78651563]
[1771876242270,12.35248259,78.17,78.146,12.79656028]
[1771876242678,12.35248259,78.17,78.146,15.58307591]
[1771876243177,0.0232595,78.175,78.147,2.78651563]
[1771876244265,0.0232595,78.175,78.148,15.58274841]
[1771876244466,0.0232595,78.175,78.149,2.78651563]
[1771876244891,12.35248259,78.17,78.149,2.78651563]
[1771876246096,12.35248259,78.17,78.148,12.79623278]
[1771876246097,0.03658997,78.169,78.135,2.78651563]
[1771876246282,12.82938506,78.169,78.135,2.78651563]
[1771876246587,12.3933892,78.18,78.141,2.78651563]
[1771876246790,12.79159281,78.177,78.141,2.78651563]
[1771876248888,12.79159281,78.177,78.14,12.35248259]
[1771876248889,12.79159281,78.177,78.143,2.78651563]
[1771876250004,12.85348458,78.177,78.143,2.78651563]
[1771876251104,12.85348458,78.177,78.145,2.78651563]
[1771876252017,3.69383402,78.197,78.144,12.79688779]
[1771876252018,12.78952282,78.189,78.151,2.78651563]
[1771876253304,12.78952282,78.189,78.16,12.35248259]
[1771876253509,12.78952282,78.189,78.161,2.78651563]
[1771876253823,12.78788731,78.199,78.171,2.78651563]
[1771876254387,0.08158286,78.205,78.171,2.78651563]
[1771876255489,0.08158286,78.205,78.172,12.79230414]
[1771876255697,0.08158286,78.205,78.173,2.78651563]
[1771876255885,12.78478099,78.218,78.191,2.78651563]
[1771876256088,0.08539748,78.22,78.19,12.35248259]
[1771876256292,12.78412722,78.222,78.191,2.78651563]
[1771876257506,3.69383402,78.219,78.12,2.83107981]
[1771876257712,0.28432314,78.219,78.181,2.83107981]
[1771876261019,44.74673348,78.218,78.181,2.83107981]
[1771876261397,12.78298329,78.229,78.201,2.83107981]
[1771876261811,0.2,78.24,78.221,2.83107981]
[1771876262312,0.2,78.31,78.232,2.73107981]
[1771876262313,0.02214922,78.278,78.232,2.73107981]
[1771876262508,0.02214922,78.278,78.202,3.69383402]
[1771876262509,0.02214922,78.278,78.241,2.73107981]
[1771876263108,0.22214922,78.275,78.241,2.73107981]
[1771876263309,0.22214922,78.275,78.242,2.73107981]
[1771876264028,6.65425057,78.297,78.241,12.78097014]
[1771876264029,0.22583563,78.299,78.261,2.73107981]
[1771876264315,12.33339743,78.29,78.261,2.73107981]
[1771876265120,12.77318652,78.289,78.261,2.73107981]
[1771876265611,12.33339743,78.27,78.249,2.73107981]
[1771876266316,12.569998,78.28,78.251,2.73107981]
[1771876266823,0.23660057,78.279,78.251,2.73107981]
[1771876267008,12.33339743,78.27,78.241,2.73107981]
[1771876267316,12.77645044,78.269,78.241,2.73107981]
[1771876267812,12.77645044,78.269,78.221,31.9606758]
[1771876267813,12.33457643,78.26,78.233,2.73107981]
[1771876268000,0.24012767,78.268,78.233,2.73107981]
[1771876270116,12.33457643,78.26,78.233,2.73107981]
[1771876270503,12.33457643,78.26,78.235,2.73107981]
[1771876273435,12.77677693,78.267,78.237,2.73107981]
[1771876275006,12.59841573,78.25,78.212,2.73107981]
[1771876275516,12.77971603,78.249,78.213,2.73107981]
[1771876275906,12.7791563,78.253,78.221,2.73107981]
[1771876276527,12.33457643,78.25,78.221,2.73107981]
[1771876277113,12.33457643,78.25,78.166,57.58]
[1771876277114,0.27021333,78.249,78.21,12.33457643]
[1771876277423,12.78134945,78.239,78.211,2.73107981]
[1771876278123,12.78134945,78.239,78.202,12.78739674]
[1771876278124,0.560842,78.291,78.231,3.06397013]
[1771876278303,0.2,78.3,78.271,2.77964699]
[1771876278304,0.560842,78.299,78.271,2.77964699]
[1771876278503,0.2,78.3,78.271,2.77964699]
[1771876278717,12.77155519,78.299,78.271,2.77964699]
[1771876278933,0.2,78.3,78.271,2.77964699]
[1771876279228,12.77155519,78.299,78.271,2.77964699]
[1771876279430,0.2,78.3,78.283,2.77964699]
[1771876279642,0.2,78.31,78.282,12.7743287]
[1771876279643,0.2,78.31,78.291,2.77964699]
[1771876280627,12.33457643,78.3,78.279,2.65431774]
[1771876280810,0.77397447,78.308,78.279,2.65431774]
[1771876281428,12.33457643,78.3,78.279,2.65431774]
[1771876281636,12.77149679,78.3,78.279,2.65431774]
[1771876281934,12.7708486,78.304,78.279,2.65431774]
[1771876282818,2.81111211,78.299,78.26,12.33457643]
[1771876283626,2.81111211,78.289,78.241,0.28432314]
[1771876283828,2.81111211,78.297,78.26,12.33457643]
[1771876284218,2.81111211,78.289,78.25,12.33457643]
[1771876284802,2.81111211,78.289,78.261,2.65431774]
[1771876286702,2.81111211,78.287,78.252,2.65431774]
[1771876289121,2.81111211,78.285,78.254,2.65431774]
[1771876290730,2.81111211,78.279,78.246,15.43443037]
[1771876290932,2.81111211,78.279,78.247,2.65431774]
[1771876291509,2.81111211,78.277,78.247,2.65431774]
[1771876291715,2.81111211,78.277,78.249,2.65431774]
[1771876292354,2.81111211,78.259,78.223,2.65431774]
[1771876293015,12.33457643,78.25,78.223,2.65431774]
[1771876293209,12.33457643,78.24,78.215,2.65431774]
[1771876293428,12.78151281,78.238,78.208,2.65431774]
[1771876294512,12.78151281,78.238,78.207,12.78643201]
[1771876294513,12.33457643,78.27,78.231,2.65431774]
[1771876294716,12.33457643,78.27,78.24,12.33457643]
[1771876294717,2.81111211,78.269,78.24,12.33457643]
[1771876295130,2.81111211,78.269,78.24,14.98889417]
[1771876295428,2.81111211,78.269,78.241,2.65431774]
[1771876295608,12.77661368,78.268,78.241,2.65431774]
[1771876296430,12.77661368,78.268,78.207,51.14631682]
[1771876296431,2.81111211,78.278,78.251,2.65431774]
[1771876296728,2.81111211,78.295,78.261,2.65431774]
[1771876296916,12.33457643,78.29,78.261,2.65431774]
[1771876297232,2.81111211,78.295,78.261,2.65431774]
[1771876298232,12.77155519,78.299,78.262,44.72157624]
[1771876298532,12.77006187,78.309,78.281,2.65431774]
[1771876298734,12.53457643,78.31,78.262,45.00589938]
[1771876298735,0.2,78.31,78.291,2.65431774]
[1771876298938,2.81111211,78.329,78.3,14.98889417]
[1771876299130,2.81111211,78.329,78.3,2.65431774]
[1771876299922,15.5778995,78.329,78.3,2.65431774]
[1771876300128,2.81111211,78.337,78.302,2.65431774]
[1771876301043,2.81111211,78.337,78.301,12.77122897]
[1771876301044,2.81111211,78.337,78.311,2.65431774]
[1771876302635,12.33457643,78.33,78.301,2.65431774]
[1771876302839,2.81111211,78.329,78.301,2.65431774]
[1771876303952,44.67933005,78.336,78.272,2.65431774]
[1771876303953,2.81111211,78.309,78.272,2.65431774]
[1771876304450,2.81111211,78.299,78.272,2.65431774]
[1771876304759,2.81111211,78.307,78.271,2.65431774]
[1771876304942,2.81111211,78.316,78.281,2.65431774]
[1771876305261,12.76894592,78.315,78.281,2.65431774]
[1771876305628,12.76812519,78.321,78.291,2.65431774]
[1771876306637,12.76812519,78.321,78.263,48.41483882]
[1771876306638,2.81111211,78.319,78.281,2.65431774]
[1771876306839,12.33457643,78.31,78.283,2.65431774]
[1771876307451,12.33457643,78.3,78.274,2.65431774]
[1771876307653,2.81111211,78.309,78.274,2.65431774]
[1771876308129,12.33457643,78.3,78.274,2.65431774]
[1771876308330,2.81111211,78.309,78.274,2.65431774]
[1771876308538,12.77008734,78.308,78.276,2.69955494]
[1771876308938,12.33457643,78.3,78.276,2.69955494]
[1771876309137,11.45643239,78.3,78.276,2.69955494]
[1771876310353,2.85602147,78.289,78.246,2.69955494]
[1771876310537,12.33457643,78.27,78.244,2.69955494]
[1771876310736,12.33457643,78.28,78.244,2.69955494]
[1771876312155,15.1905979,78.28,78.244,2.69955494]
[1771876312548,15.1905979,78.28,78.243,44.73243612]
[1771876312549,12.77481827,78.279,78.246,2.69955494]
[1771876315654,12.77481827,78.279,78.248,2.69955494]
[1771876316235,15.63083974,78.279,78.248,2.69955494]
[1771876316557,15.63083974,78.279,78.223,3.69383402]
[1771876316558,12.33457643,78.29,78.251,2.69955494]
[1771876316759,12.7737066,78.286,78.251,2.69955494]
[1771876317555,12.7737066,78.286,78.261,2.69955494]
[1771876318570,12.33457643,78.29,78.262,2.69955494]
[1771876321261,12.33457643,78.29,78.233,3.69383402]
[1771876321262,12.33457643,78.27,78.244,2.69955494]
[1771876321563,15.1905979,78.27,78.244,2.69955494]
[1771876322463,12.33457643,78.29,78.261,2.69955494]
[1771876323072,2.85602147,78.289,78.261,2.69955494]
[1771876323241,2.85602147,78.289,78.234,69.27169348]
[1771876323242,2.85602147,78.269,78.243,2.69955494]
[1771876323442,2.85602147,78.249,78.218,2.69955494]
[1771876324050,12.33457643,78.25,78.218,2.69955494]
[1771876324648,12.33457643,78.25,78.22,2.69955494]
[1771876324955,25.11415787,78.25,78.22,2.69955494]
[1771876325356,25.11415787,78.25,78.201,12.78756026]
[1771876325357,12.33457643,78.23,78.201,12.78756026]
[1771876325664,12.33457643,78.23,78.163,51.17510303]
[1771876325665,12.33457643,78.22,78.187,2.69955494]
[1771876325844,12.33457643,78.21,78.187,2.69955494]
[1771876326045,12.33457643,78.22,78.191,2.69955494]
[1771876326560,57.06303965,78.25,78.182,15.49006721]
[1771876326561,2.85602147,78.209,78.182,15.49006721]
[1771876327046,2.85602147,78.209,78.17,12.43457643]
[1771876327047,12.33457643,78.2,78.172,2.69955494]
[1771876327467,15.1905979,78.21,78.172,2.69955494]
[1771876327663,15.1905979,78.21,78.17,57.20877079]
[1771876327664,12.33457643,78.21,78.174,2.69955494]
[1771876327968,12.33457643,78.21,78.181,2.69955494]
[1771876329362,12.35419602,78.21,78.183,2.69955494]
[1771876330370,15.64227369,78.209,78.183,2.69955494]
[1771876330566,2.85602147,78.209,78.183,2.69955494]
[1771876331566,2.85602147,78.209,78.184,12.79034073]
[1771876331772,2.85602147,78.209,78.184,15.48989567]
[1771876332658,2.85602147,78.209,78.185,2.69955494]
[1771876332968,12.78641571,78.208,78.185,2.69955494]
[1771876333269,12.35419602,78.21,78.185,2.69955494]
[1771876333478,2.85602147,78.209,78.184,12.79034073]
[1771876333778,2.85602147,78.218,78.183,2.69955494]
[1771876333959,12.35419602,78.21,78.183,2.69955494]
[1771876334274,2.85602147,78.218,78.183,2.69955494]
[1771876334452,12.35419602,78.21,78.183,2.69955494]
[1771876335858,12.35419602,78.21,78.184,12.79034073]
[1771876336151,12.35419602,78.21,78.185,2.69955494]
[1771876336559,0.2,78.209,78.185,2.69955494]